[Event "5th CNE NED-ch Rapid 2019"]
[Site "Amstelveen"]
[Date "2019.12.01"]
[Round "1.2"]
[White "Van den Doel, Erik"]
[Black "Van Foreest, Jorden"]
[Result "1-0"]
[ECO "B31"]
[WhiteElo "2598"]
[BlackElo "2632"]
[Annotator "ChessBase"]
[PlyCount "53"]
[EventDate "2019.11.30"]
[EventType "tourn"]
[EventCountry "NED"]
[SourceTitle "playchess.com"]
[Source "ChessBase"]
[SourceQuality "1"]
[TimeControl "900+10"]

1. e4 {[%emt 0:00:00]} c5 {[%emt 0:00:00]} 2. Nf3 {[%emt 0:00:00]} Nc6 {[%emt 0:00:22]} 3. Bb5 {[%emt 0:00:09]} g6 {[%emt 0:00:26]} 4. O-O {[%emt 0:00:11]} Bg7 {[%emt 0:00:04]} 5. c3 {[%emt 0:00:03]} e5 {[%emt 0:00:35]} 6. d4 {[%emt 0:00:15]} cxd4 {[%emt 0:00:53]} 7. cxd4 {[%emt 0:00:02]} exd4 {[%emt 0:00:11]} 8. Bf4 {[%emt 0:00:03]} Nge7 {[%emt 0:00:19]} 9. Bd6 {[%emt 0:00:09]} a6 {[%emt 0:00:02]} 10. Qa4 {[%emt 0:01:29]} O-O {[%emt 0:01:29]} 11. Nbd2 {[%emt 0:01:46]} b6 {[%emt 0:00:53]} 12. Qa3 {[%emt 0:01:11]} Ra7 {[%emt 0:02:58]} 13. Bc4 {[%emt 0:02:35]} b5 {[%emt 0:00:08]} 14. Bd5 {[%emt 0:01:38]} b4 {[%emt 0:01:01]} 15. Qa4 {[%emt 0:00:36]} Rb7 {[%emt 0:01:14]} 16. Bc4 {[%emt 0:00:44]} Kh8 {[%emt 0:03:56]} 17. e5 {[%emt 0:01:22]} f6 {[%emt 0:00:22]} 18. exf6 {[%emt 0:00:15]} Rxf6 {[%emt 0:00:01]} 19. Ng5 {[%emt 0:00:18]} Nf5 {[%emt 0:00:08]} 20. Nde4 {[%emt 0:00:07]} Nxd6 {[%emt 0:01:14]} 21. Nxd6 {[%emt 0:00:07]} Ne5 {[%emt 0:00:01]} 22. Rae1 {[%emt 0:01:36]} Bf8 {[%emt 0:01:55]} 23. Nxb7 {[%emt 0:00:58]} Bxb7 {[%emt 0:00:02]} 24. Rxe5 {[%emt 0:00:03]} Qc7 {[%emt 0:00:00]} 25. Rfe1 {[%emt 0:00:40]} Qxc4 {[%emt 0:00:10]} 26. Qxd7 {[%emt 0:00:04]} Qc2 {[%emt 0:00:36]} 27. Qxh7# {[%emt 0:00:16]} 1-0

[Event "5th CNE NED-ch Rapid 2019"]
[Site "Amstelveen"]
[Date "2019.12.01"]
[Round "1.3"]
[White "Ernst, Sipke"]
[Black "Reinderman, Dimitri"]
[Result "1/2-1/2"]
[ECO "D02"]
[WhiteElo "2553"]
[BlackElo "2575"]
[Annotator "ChessBase"]
[PlyCount "120"]
[EventDate "2019.11.30"]
[EventType "tourn"]
[EventCountry "NED"]
[SourceTitle "playchess.com"]
[Source "ChessBase"]
[SourceQuality "1"]
[TimeControl "900+10"]

1. d4 {[%emt 0:00:00]} e6 {[%emt 0:00:00]} 2. Bf4 {[%emt 0:00:01]} d5 {[%emt 0:00:00]} 3. e3 {[%emt 0:00:06]} Bd6 {[%emt 0:00:02]} 4. Nf3 {[%emt 0:00:04]} Nf6 {[%emt 0:00:21]} 5. Nbd2 {[%emt 0:00:22]} b6 {[%emt 0:00:27]} 6. Bb5+ {[%emt 0:00:07]} c6 {[%emt 0:00:05]} 7. Bd3 {[%emt 0:00:03]} O-O {[%emt 0:01:11]} 8. O-O {[%emt 0:00:24]} c5 {[%emt 0:00:34]} 9. Ne5 {[%emt 0:02:48]} Bb7 {[%emt 0:02:08]} 10. Qf3 {[%emt 0:00:14]} Qc7 {[%emt 0:00:36]} 11. c3 {[%emt 0:03:23]} Nfd7 {[%emt 0:02:57]} 12. Qh3 {[%emt 0:01:43]} f5 {[%emt 0:00:52]} 13. Ndf3 {[%emt 0:00:02]} Nxe5 {[%emt 0:01:09]} 14. Ng5 {[%emt 0:01:18]} h6 {[%emt 0:00:20]} 15. Nxe6 {[%emt 0:01:29]} Nxd3 {[%emt 0:00:08]} 16. Nxc7 {[%emt 0:00:31]} Nxf4 {[%emt 0:00:03]} 17. exf4 {[%emt 0:00:02]} Bxc7 {[%emt 0:00:01]} 18. Rfe1 {[%emt 0:00:52]} Bxf4 {[%emt 0:01:00]} 19. dxc5 {[%emt 0:01:07]} bxc5 {[%emt 0:00:03]} 20. Rad1 {[%emt 0:00:27]} Nd7 {[%emt 0:01:00]} 21. Re7 {[%emt 0:00:17]} Rad8 {[%emt 0:00:08]} 22. Qd3 {[%emt 0:00:05]} Bg5 {[%emt 0:00:13]} 23. Re6 {[%emt 0:00:07]} Nb6 {[%emt 0:00:27]} 24. Qb5 {[%emt 0:00:03]} d4 {[%emt 0:00:25]} 25. Qxc5 {[%emt 0:00:48]} dxc3 {[%emt 0:00:27]} 26. Rxd8 {[%emt 0:00:02]} Rxd8 {[%emt 0:00:03]} 27. Qxc3 {[%emt 0:00:03]} Bf6 {[%emt 0:00:43]} 28. Qe1 {[%emt 0:00:17]} Kf7 {[%emt 0:00:06]} 29. Re2 {[%emt 0:00:23]} Nd5 {[%emt 0:00:09]} 30. g3 {[%emt 0:00:17]} Rc8 {[%emt 0:00:32]} 31. Qa5 {[%emt 0:00:23]} a6 {[%emt 0:00:24]} 32. Qd2 {[%emt 0:00:31]} Bg5 {[%emt 0:00:21]} 33. f4 {[%emt 0:00:10]} Bd8 {[%emt 0:00:09]} 34. Re5 {[%emt 0:00:12]} Bb6+ {[%emt 0:00:06]} 35. Kf1 {[%emt 0:00:01]} Rd8 {[%emt 0:00:16]} 36. Qc2 {[%emt 0:00:18]} g6 {[%emt 0:00:37]} 37. Qb3 {[%emt 0:00:01]} Rd6 {[%emt 0:00:04]} 38. Qa3 {[%emt 0:00:52]} Rd7 {[%emt 0:00:22]} 39. Qb3 {[%emt 0:00:02]} Ba7 {[%emt 0:00:29]} 40. Qa4 {[%emt 0:00:17]} Nf6 {[%emt 0:00:19]} 41. h3 {[%emt 0:00:17]} Bd4 {[%emt 0:00:14]} 42. Qc4+ {[%emt 0:00:07]} Bd5 {[%emt 0:00:25]} 43. Qa4 {[%emt 0:00:06]} Be6 {[%emt 0:00:45]} 44. Rxe6 {[%emt 0:00:40]} Kxe6 {[%emt 0:00:01]} 45. Qxa6+ {[%emt 0:00:00]} Kf7 {[%emt 0:00:19]} 46. b4 {[%emt 0:00:12]} g5 {[%emt 0:00:35]} 47. Qc6 {[%emt 0:00:17]} gxf4 {[%emt 0:00:48]} 48. gxf4 {[%emt 0:00:01]} Ke7 {[%emt 0:00:11]} 49. b5 {[%emt 0:00:30]} Be3 {[%emt 0:00:03]} 50. b6 {[%emt 0:00:37]} Bxf4 {[%emt 0:00:02]} 51. b7 {[%emt 0:00:12]} Bb8 {[%emt 0:00:05]} 52. Qc8 {[%emt 0:00:07]} Rd8 {[%emt 0:00:04]} 53. Qxf5 {[%emt 0:00:05]} Nd5 {[%emt 0:00:25]} 54. Qh7+ {[%emt 0:00:05]} Kd6 {[%emt 0:00:05]} 55. a4 {[%emt 0:00:15]} Kc6 {[%emt 0:00:09]} 56. a5 {[%emt 0:00:02]} Rd7 {[%emt 0:00:12]} 57. Qxh6+ {[%emt 0:00:07]} Kxb7 {[%emt 0:00:02]} 58. Qe6 {[%emt 0:00:07]} Rd6 {[%emt 0:00:15]} 59. Qe4 {[%emt 0:00:19]} Bc7 {[%emt 0:00:05]} 60. h4 {[%emt 0:00:09]} Bxa5 {[%emt 0:00:14]} 1/2-1/2

[Event "5th CNE NED-ch Rapid 2019"]
[Site "Amstelveen"]
[Date "2019.12.01"]
[Round "2.2"]
[White "Reinderman, Dimitri"]
[Black "Smeets, Jan"]
[Result "0-1"]
[ECO "A11"]
[WhiteElo "2575"]
[BlackElo "2596"]
[Annotator "ChessBase"]
[PlyCount "58"]
[EventDate "2019.11.30"]
[EventType "tourn"]
[EventCountry "NED"]
[SourceTitle "playchess.com"]
[Source "ChessBase"]
[SourceQuality "1"]
[TimeControl "900+10"]

1. Nf3 {[%emt 0:00:00]} d5 {[%emt 0:00:00]} 2. c4 {[%emt 0:00:00]} c6 {[%emt 0:00:00]} 3. g3 {[%emt 0:00:00]} Nf6 {[%emt 0:00:00]} 4. Bg2 {[%emt 0:00:00]} dxc4 {[%emt 0:00:00]} 5. O-O {[%emt 0:00:00]} b5 {[%emt 0:00:00]} 6. b3 {[%emt 0:00:02]} cxb3 {[%emt 0:00:01]} 7. Qxb3 {[%emt 0:00:06]} e6 {[%emt 0:00:15]} 8. a4 {[%emt 0:01:42]} b4 {[%emt 0:00:32]} 9. a5 {[%emt 0:02:19]} Bb7 {[%emt 0:02:36]} 10. Ne5 {[%emt 0:01:15]} Qc8 {[%emt 0:01:33]} 11. d4 {[%emt 0:01:31]} c5 {[%emt 0:02:32]} 12. Bb2 {[%emt 0:04:31]} Bxg2 {[%emt 0:01:43]} 13. Kxg2 {[%emt 0:00:01]} Nbd7 {[%emt 0:00:51]} 14. Qa4 {[%emt 0:00:24]} c4 {[%emt 0:03:37]} 15. Rc1 {[%emt 0:00:03]} c3 {[%emt 0:00:04]} 16. Bxc3 {[%emt 0:00:02]} Qb7+ {[%emt 0:00:58]} 17. f3 {[%emt 0:00:41]} bxc3 {[%emt 0:00:03]} 18. Nxc3 {[%emt 0:00:04]} Qb4 {[%emt 0:01:12]} 19. Nb5 {[%emt 0:01:31]} Qxa4 {[%emt 0:01:15]} 20. Nc7+ {[%emt 0:00:01]} Ke7 {[%emt 0:00:49]} 21. Rxa4 {[%emt 0:00:04]} Nxe5 {[%emt 0:00:16]} 22. dxe5 {[%emt 0:00:32]} Rb8 {[%emt 0:00:11]} 23. Na6 {[%emt 0:01:04]} Rb2 {[%emt 0:00:01]} 24. exf6+ {[%emt 0:01:57]} Kxf6 {[%emt 0:00:01]} 25. Rc7 {[%emt 0:00:32]} Bd6 {[%emt 0:00:23]} 26. Rd7 {[%emt 0:00:06]} Rxe2+ {[%emt 0:00:07]} 27. Kh3 {[%emt 0:00:04]} Be5 {[%emt 0:00:08]} 28. f4 {[%emt 0:00:17]} Bb2 {[%emt 0:00:12]} 29. Nc5 {[%emt 0:00:21]} Rc8 {[%emt 0:00:13]} 0-1

[Event "5th CNE NED-ch Rapid 2019"]
[Site "Amstelveen"]
[Date "2019.12.01"]
[Round "2.3"]
[White "Van Foreest, Jorden"]
[Black "Ernst, Sipke"]
[Result "1/2-1/2"]
[ECO "C83"]
[WhiteElo "2632"]
[BlackElo "2553"]
[Annotator "ChessBase"]
[PlyCount "124"]
[EventDate "2019.11.30"]
[EventType "tourn"]
[EventCountry "NED"]
[SourceTitle "playchess.com"]
[Source "ChessBase"]
[SourceQuality "1"]
[TimeControl "900+10"]

1. e4 {[%emt 0:00:00]} e5 {[%emt 0:00:01]} 2. Nf3 {[%emt 0:00:00]} Nc6 {[%emt 0:00:02]} 3. Bb5 {[%emt 0:00:00]} a6 {[%emt 0:00:03]} 4. Ba4 {[%emt 0:00:00]} Nf6 {[%emt 0:00:03]} 5. O-O {[%emt 0:00:06]} Nxe4 {[%emt 0:00:03]} 6. d4 {[%emt 0:00:03]} b5 {[%emt 0:00:03]} 7. Bb3 {[%emt 0:00:02]} d5 {[%emt 0:00:03]} 8. dxe5 {[%emt 0:00:02]} Be6 {[%emt 0:00:03]} 9. c3 {[%emt 0:00:17]} Be7 {[%emt 0:00:53]} 10. Bc2 {[%emt 0:01:01]} O-O {[%emt 0:00:06]} 11. Nbd2 {[%emt 0:01:16]} Nxd2 {[%emt 0:00:02]} 12. Qxd2 {[%emt 0:00:05]} Qd7 {[%emt 0:01:40]} 13. Qd3 {[%emt 0:00:04]} g6 {[%emt 0:00:05]} 14. Bh6 {[%emt 0:00:14]} Rfe8 {[%emt 0:00:26]} 15. Rfe1 {[%emt 0:00:05]} Bf5 {[%emt 0:02:31]} 16. Qd2 {[%emt 0:00:08]} Bxc2 {[%emt 0:01:36]} 17. Qxc2 {[%emt 0:00:02]} Nd8 {[%emt 0:00:43]} 18. h3 {[%emt 0:00:54]} Ne6 {[%emt 0:00:21]} 19. Rad1 {[%emt 0:00:03]} Rad8 {[%emt 0:00:06]} 20. Nh2 {[%emt 0:00:04]} d4 {[%emt 0:00:16]} 21. cxd4 {[%emt 0:04:43]} Nxd4 {[%emt 0:00:02]} 22. Qe4 {[%emt 0:00:02]} Bb4 {[%emt 0:03:25]} 23. Ng4 {[%emt 0:00:36]} Be7 {[%emt 0:00:15]} 24. Be3 {[%emt 0:05:12]} c5 {[%emt 0:00:01]} 25. b4 {[%emt 0:00:39]} h5 {[%emt 0:02:14]} 26. bxc5 {[%emt 0:00:47]} Ne2+ {[%emt 0:00:32]} 27. Kh2 {[%emt 0:00:07]} Nc3 {[%emt 0:00:06]} 28. Rxd7 {[%emt 0:00:07]} Nxe4 {[%emt 0:00:02]} 29. Nh6+ {[%emt 0:02:49]} Kg7 {[%emt 0:00:03]} 30. c6 {[%emt 0:00:01]} Rxd7 {[%emt 0:00:53]} 31. cxd7 {[%emt 0:00:02]} Rd8 {[%emt 0:00:45]} 32. e6 {[%emt 0:00:12]} fxe6 {[%emt 0:00:07]} 33. Bb6 {[%emt 0:00:06]} Rxd7 {[%emt 0:01:52]} 34. Rxe4 {[%emt 0:00:01]} Kxh6 {[%emt 0:00:06]} 35. Rxe6 {[%emt 0:00:02]} Kg7 {[%emt 0:00:18]} 36. g4 {[%emt 0:00:07]} Kf7 {[%emt 0:00:12]} 37. Re2 {[%emt 0:00:05]} hxg4 {[%emt 0:00:05]} 38. hxg4 {[%emt 0:00:02]} g5 {[%emt 0:00:11]} 39. Kg2 {[%emt 0:00:03]} b4 {[%emt 0:00:07]} 40. Re5 {[%emt 0:00:04]} Rd3 {[%emt 0:00:56]} 41. Ra5 {[%emt 0:00:27]} Ke6 {[%emt 0:00:12]} 42. Be3 {[%emt 0:00:43]} Ra3 {[%emt 0:00:01]} 43. Rxa3 {[%emt 0:00:01]} bxa3 {[%emt 0:00:01]} 44. Kf3 {[%emt 0:00:15]} Kd5 {[%emt 0:00:00]} 45. Ke2 {[%emt 0:00:15]} Kc4 {[%emt 0:00:01]} 46. Kd2 {[%emt 0:00:13]} Bd8 {[%emt 0:00:06]} 47. Kc2 {[%emt 0:00:03]} Bf6 {[%emt 0:00:03]} 48. Bc1 {[%emt 0:00:03]} Be7 {[%emt 0:00:02]} 49. f3 {[%emt 0:00:23]} Kd4 {[%emt 0:00:01]} 50. Kb3 {[%emt 0:00:02]} Kd3 {[%emt 0:00:04]} 51. f4 {[%emt 0:00:20]} gxf4 {[%emt 0:00:02]} 52. Bxf4 {[%emt 0:00:01]} Ke4 {[%emt 0:00:01]} 53. Bc1 {[%emt 0:00:02]} Kd5 {[%emt 0:00:45]} 54. Ka4 {[%emt 0:00:19]} Kc6 {[%emt 0:00:06]} 55. Bxa3 {[%emt 0:00:03]} Bg5 {[%emt 0:00:06]} 56. Ka5 {[%emt 0:00:04]} Kb7 {[%emt 0:00:02]} 57. Kb4 {[%emt 0:00:07]} Kc6 {[%emt 0:00:02]} 58. Kc4 {[%emt 0:00:02]} Bf6 {[%emt 0:00:02]} 59. Bc1 {[%emt 0:00:01]} Kd6 {[%emt 0:00:24]} 60. Bf4+ {[%emt 0:00:03]} Kc6 {[%emt 0:00:01]} 61. g5 {[%emt 0:00:22]} Bxg5 {[%emt 0:00:04]} 62. Bxg5 {[%emt 0:00:04]} a5 {[%emt 0:00:02]} 1/2-1/2

[Event "5th CNE NED-ch Rapid 2019"]
[Site "Amstelveen"]
[Date "2019.12.01"]
[Round "2.4"]
[White "Van Wely, Loek"]
[Black "Van den Doel, Erik"]
[Result "1/2-1/2"]
[ECO "A11"]
[WhiteElo "2610"]
[BlackElo "2598"]
[Annotator "ChessBase"]
[PlyCount "101"]
[EventDate "2019.11.30"]
[EventType "tourn"]
[EventCountry "NED"]
[SourceTitle "playchess.com"]
[Source "ChessBase"]
[SourceQuality "1"]
[TimeControl "900+10"]

1. c4 {[%emt 0:00:00]} c6 {[%emt 0:00:00]} 2. Nf3 {[%emt 0:00:00]} d5 {[%emt 0:00:00]} 3. e3 {[%emt 0:00:02]} Nf6 {[%emt 0:00:02]} 4. Nc3 {[%emt 0:00:04]} e6 {[%emt 0:00:07]} 5. b3 {[%emt 0:00:06]} Bd6 {[%emt 0:00:04]} 6. Bb2 {[%emt 0:00:02]} O-O {[%emt 0:00:03]} 7. Qc2 {[%emt 0:00:42]} e5 {[%emt 0:00:17]} 8. cxd5 {[%emt 0:00:06]} cxd5 {[%emt 0:00:02]} 9. Nb5 {[%emt 0:00:02]} Nc6 {[%emt 0:00:02]} 10. Nxd6 {[%emt 0:00:03]} Qxd6 {[%emt 0:00:02]} 11. Rc1 {[%emt 0:03:38]} Bg4 {[%emt 0:01:31]} 12. Qc5 {[%emt 0:00:03]} Qe6 {[%emt 0:01:05]} 13. Qb5 {[%emt 0:04:25]} Rab8 {[%emt 0:01:56]} 14. h3 {[%emt 0:00:01]} Bxf3 {[%emt 0:01:47]} 15. gxf3 {[%emt 0:00:02]} Rfc8 {[%emt 0:00:13]} 16. Bg2 {[%emt 0:01:08]} Ne8 {[%emt 0:02:59]} 17. f4 {[%emt 0:01:57]} e4 {[%emt 0:00:48]} 18. Rg1 {[%emt 0:00:59]} Nd6 {[%emt 0:00:05]} 19. Qa4 {[%emt 0:00:14]} Nf5 {[%emt 0:00:14]} 20. Bf1 {[%emt 0:00:10]} a6 {[%emt 0:00:32]} 21. Be2 {[%emt 0:00:09]} Nce7 {[%emt 0:00:12]} 22. Rxc8+ {[%emt 0:00:20]} Rxc8 {[%emt 0:00:16]} 23. Bg4 {[%emt 0:00:19]} Ng6 {[%emt 0:00:17]} 24. Ke2 {[%emt 0:01:26]} Ngh4 {[%emt 0:01:35]} 25. Bxg7 {[%emt 0:00:35]} Nf3 {[%emt 0:00:01]} 26. Bxf3 {[%emt 0:01:28]} exf3+ {[%emt 0:00:04]} 27. Kxf3 {[%emt 0:00:05]} Nxg7 {[%emt 0:00:13]} 28. Kg3 {[%emt 0:00:54]} Kh8 {[%emt 0:00:49]} 29. Kh2 {[%emt 0:00:05]} Nf5 {[%emt 0:00:10]} 30. Rg4 {[%emt 0:00:12]} f6 {[%emt 0:00:41]} 31. Qb4 {[%emt 0:00:18]} b5 {[%emt 0:00:23]} 32. a4 {[%emt 0:00:01]} bxa4 {[%emt 0:00:12]} 33. bxa4 {[%emt 0:00:01]} d4 {[%emt 0:01:42]} 34. Qb7 {[%emt 0:00:07]} dxe3 {[%emt 0:00:25]} 35. dxe3 {[%emt 0:00:01]} Rc2 {[%emt 0:00:16]} 36. Rg2 {[%emt 0:00:45]} Rc4 {[%emt 0:00:48]} 37. Qb8+ {[%emt 0:00:13]} Rc8 {[%emt 0:00:01]} 38. Qb7 {[%emt 0:00:02]} Rg8 {[%emt 0:00:07]} 39. Rg4 {[%emt 0:00:15]} Rxg4 {[%emt 0:00:26]} 40. hxg4 {[%emt 0:00:01]} Nh6 {[%emt 0:00:02]} 41. g5 {[%emt 0:00:15]} fxg5 {[%emt 0:00:07]} 42. fxg5 {[%emt 0:00:02]} Nf7 {[%emt 0:00:14]} 43. f4 {[%emt 0:00:07]} Kg7 {[%emt 0:00:01]} 44. Qb2+ {[%emt 0:00:25]} Kg8 {[%emt 0:00:03]} 45. Qb8+ {[%emt 0:00:03]} Kg7 {[%emt 0:00:01]} 46. Qb2+ {[%emt 0:00:01]} Kg6 {[%emt 0:00:08]} 47. Qc2+ {[%emt 0:00:01]} Qf5 {[%emt 0:00:03]} 48. Qc6+ {[%emt 0:00:03]} Kh5 {[%emt 0:00:10]} 49. Qxa6 {[%emt 0:00:15]} Qg4 {[%emt 0:00:37]} 50. Qf1 {[%emt 0:00:09]} Kg6 {[%emt 0:00:27]} 51. Qd3+ {[%emt 0:00:21]} 1/2-1/2

[Event "5th CNE NED-ch Rapid 2019"]
[Site "Amstelveen"]
[Date "2019.12.01"]
[Round "3.2"]
[White "Smeets, Jan"]
[Black "Van Foreest, Jorden"]
[Result "1-0"]
[ECO "B92"]
[WhiteElo "2596"]
[BlackElo "2632"]
[Annotator "ChessBase"]
[PlyCount "73"]
[EventDate "2019.11.30"]
[EventType "tourn"]
[EventCountry "NED"]
[SourceTitle "playchess.com"]
[Source "ChessBase"]
[SourceQuality "1"]
[TimeControl "900+10"]

1. e4 {[%emt 0:00:10]} c5 {[%emt 0:00:00]} 2. Nf3 {[%emt 0:00:12]} d6 {[%emt 0:00:00]} 3. d4 {[%emt 0:00:10]} cxd4 {[%emt 0:00:00]} 4. Nxd4 {[%emt 0:00:01]} Nf6 {[%emt 0:00:00]} 5. Nc3 {[%emt 0:00:01]} a6 {[%emt 0:00:00]} 6. Be2 {[%emt 0:00:05]} e5 {[%emt 0:00:02]} 7. Nf5 {[%emt 0:00:06]} d5 {[%emt 0:00:21]} 8. Bg5 {[%emt 0:00:02]} d4 {[%emt 0:00:31]} 9. Bxf6 {[%emt 0:00:03]} gxf6 {[%emt 0:00:12]} 10. Nb1 {[%emt 0:00:03]} Bb4+ {[%emt 0:02:00]} 11. Kf1 {[%emt 0:00:02]} Bxf5 {[%emt 0:00:11]} 12. exf5 {[%emt 0:00:01]} Nc6 {[%emt 0:00:04]} 13. Bd3 {[%emt 0:00:40]} Qd5 {[%emt 0:00:19]} 14. Qe2 {[%emt 0:00:05]} O-O-O {[%emt 0:00:03]} 15. a3 {[%emt 0:00:14]} Qa5 {[%emt 0:01:05]} 16. g3 {[%emt 0:02:53]} Kb8 {[%emt 0:01:44]} 17. Qf3 {[%emt 0:00:53]} Ne7 {[%emt 0:01:11]} 18. Be4 {[%emt 0:00:04]} Nc8 {[%emt 0:00:07]} 19. Bxb7 {[%emt 0:00:26]} Qb5+ {[%emt 0:00:01]} 20. Kg2 {[%emt 0:00:30]} Qxb7 {[%emt 0:00:04]} 21. axb4 {[%emt 0:02:45]} e4 {[%emt 0:00:22]} 22. Qf4+ {[%emt 0:00:02]} Nd6 {[%emt 0:00:01]} 23. Nd2 {[%emt 0:00:49]} Rhe8 {[%emt 0:00:12]} 24. Nc4 {[%emt 0:01:19]} e3+ {[%emt 0:00:03]} 25. f3 {[%emt 0:03:00]} Qc7 {[%emt 0:00:14]} 26. Rxa6 {[%emt 0:00:26]} Qxc4 {[%emt 0:00:01]} 27. Rxd6 {[%emt 0:00:37]} Qxc2+ {[%emt 0:00:23]} 28. Kh3 {[%emt 0:00:01]} Qc7 {[%emt 0:01:10]} 29. Rb6+ {[%emt 0:00:54]} Kc8 {[%emt 0:00:02]} 30. Rc1 {[%emt 0:00:01]} Rd7 {[%emt 0:02:37]} 31. Rxc7+ {[%emt 0:01:31]} Rxc7 {[%emt 0:00:01]} 32. Ra6 {[%emt 0:00:06]} Re5 {[%emt 0:00:01]} 33. Qxd4 {[%emt 0:00:23]} e2 {[%emt 0:00:21]} 34. Ra8+ {[%emt 0:00:14]} Kb7 {[%emt 0:00:01]} 35. Qa7+ {[%emt 0:00:31]} Kc6 {[%emt 0:00:01]} 36. Qa6+ {[%emt 0:00:27]} Kd7 {[%emt 0:00:06]} 37. Qxf6 {[%emt 0:00:02]} 1-0

[Event "5th CNE NED-ch Rapid 2019"]
[Site "Amstelveen"]
[Date "2019.12.01"]
[Round "3.3"]
[White "Van den Doel, Erik"]
[Black "Timman, Jan H"]
[Result "1/2-1/2"]
[ECO "C07"]
[WhiteElo "2598"]
[BlackElo "2528"]
[Annotator "ChessBase"]
[PlyCount "63"]
[EventDate "2019.11.30"]
[EventType "tourn"]
[EventCountry "NED"]
[SourceTitle "playchess.com"]
[Source "ChessBase"]
[SourceQuality "1"]
[TimeControl "900+10"]

1. e4 {[%emt 0:00:00]} e6 {[%emt 0:00:00]} 2. d4 {[%emt 0:00:00]} d5 {[%emt 0:00:00]} 3. Nd2 {[%emt 0:00:14]} c5 {[%emt 0:00:05]} 4. Ngf3 {[%emt 0:00:02]} cxd4 {[%emt 0:00:05]} 5. Nxd4 {[%emt 0:00:03]} Nc6 {[%emt 0:00:08]} 6. Bb5 {[%emt 0:00:03]} Bd7 {[%emt 0:00:04]} 7. Nxc6 {[%emt 0:00:03]} bxc6 {[%emt 0:00:02]} 8. Bd3 {[%emt 0:00:02]} Qc7 {[%emt 0:00:08]} 9. Qe2 {[%emt 0:00:14]} Bd6 {[%emt 0:00:37]} 10. Nf3 {[%emt 0:00:34]} dxe4 {[%emt 0:00:25]} 11. Qxe4 {[%emt 0:00:20]} Nf6 {[%emt 0:00:02]} 12. Qh4 {[%emt 0:00:09]} c5 {[%emt 0:00:29]} 13. Bg5 {[%emt 0:00:50]} Nd5 {[%emt 0:01:11]} 14. O-O {[%emt 0:03:44]} f6 {[%emt 0:00:08]} 15. Qh5+ {[%emt 0:02:06]} Ke7 {[%emt 0:00:39]} 16. Bd2 {[%emt 0:00:23]} Bf4 {[%emt 0:01:11]} 17. c4 {[%emt 0:01:23]} g6 {[%emt 0:01:22]} 18. Qh4 {[%emt 0:00:12]} Bxd2 {[%emt 0:00:53]} 19. cxd5 {[%emt 0:00:02]} Qf4 {[%emt 0:00:09]} 20. Qxf4 {[%emt 0:01:04]} Bxf4 {[%emt 0:00:03]} 21. dxe6 {[%emt 0:00:02]} Bxe6 {[%emt 0:00:14]} 22. Rfe1 {[%emt 0:00:01]} Kf7 {[%emt 0:10:45]} 23. Re4 {[%emt 0:00:07]} Bd6 {[%emt 0:00:00]} 24. Bc4 {[%emt 0:00:11]} Bxc4 {[%emt 0:00:00]} 25. Rxc4 {[%emt 0:00:01]} Rhd8 {[%emt 0:00:00]} 26. Kf1 {[%emt 0:00:23]} a5 {[%emt 0:00:00]} 27. Rd1 {[%emt 0:00:43]} a4 {[%emt 0:00:00]} 28. Rd3 {[%emt 0:00:50]} Rab8 {[%emt 0:00:00]} 29. b3 {[%emt 0:00:34]} axb3 {[%emt 0:00:00]} 30. axb3 {[%emt 0:00:01]} Be7 {[%emt 0:00:00]} 31. Rxd8 {[%emt 0:00:07]} Bxd8 {[%emt 0:00:00]} 32. Rxc5 {[%emt 0:00:13]} 1/2-1/2

[Event "5th CNE NED-ch Rapid 2019"]
[Site "Amstelveen"]
[Date "2019.12.01"]
[Round "3.4"]
[White "Pruijssers, Roeland"]
[Black "Reinderman, Dimitri"]
[Result "1/2-1/2"]
[ECO "C03"]
[WhiteElo "2557"]
[BlackElo "2575"]
[Annotator "ChessBase"]
[PlyCount "55"]
[EventDate "2019.11.30"]
[EventType "tourn"]
[EventCountry "NED"]
[SourceTitle "playchess.com"]
[Source "ChessBase"]
[SourceQuality "1"]
[TimeControl "900+10"]

1. e4 {[%emt 0:00:00]} e6 {[%emt 0:00:00]} 2. d4 {[%emt 0:00:01]} d5 {[%emt 0:00:00]} 3. Nd2 {[%emt 0:00:02]} h6 {[%emt 0:00:00]} 4. Ngf3 {[%emt 0:00:17]} Nf6 {[%emt 0:00:00]} 5. Bd3 {[%emt 0:00:18]} c5 {[%emt 0:00:02]} 6. c3 {[%emt 0:00:46]} Nc6 {[%emt 0:00:29]} 7. dxc5 {[%emt 0:02:01]} Bxc5 {[%emt 0:01:34]} 8. O-O {[%emt 0:00:13]} dxe4 {[%emt 0:01:25]} 9. Nxe4 {[%emt 0:00:04]} Nxe4 {[%emt 0:00:01]} 10. Bxe4 {[%emt 0:00:02]} Qxd1 {[%emt 0:00:03]} 11. Rxd1 {[%emt 0:00:03]} a5 {[%emt 0:00:06]} 12. Bf4 {[%emt 0:00:24]} Ke7 {[%emt 0:02:08]} 13. Bxc6 {[%emt 0:00:27]} bxc6 {[%emt 0:00:02]} 14. Ne5 {[%emt 0:00:01]} Ra6 {[%emt 0:01:00]} 15. Nc4 {[%emt 0:00:15]} f6 {[%emt 0:00:34]} 16. Bd6+ {[%emt 0:02:19]} Bxd6 {[%emt 0:00:01]} 17. Nxd6 {[%emt 0:00:03]} e5 {[%emt 0:03:25]} 18. Ne4 {[%emt 0:00:17]} Rb6 {[%emt 0:01:02]} 19. b3 {[%emt 0:00:14]} Bf5 {[%emt 0:00:03]} 20. Nc5 {[%emt 0:01:07]} Rbb8 {[%emt 0:00:30]} 21. c4 {[%emt 0:00:23]} Rhd8 {[%emt 0:00:39]} 22. Kf1 {[%emt 0:01:21]} Rd4 {[%emt 0:00:49]} 23. Ke2 {[%emt 0:02:40]} Kd6 {[%emt 0:00:11]} 24. Na4 {[%emt 0:00:09]} c5 {[%emt 0:00:35]} 25. Nc3 {[%emt 0:00:03]} Bd7 {[%emt 0:00:02]} 26. Ne4+ {[%emt 0:01:57]} Kc6 {[%emt 0:00:04]} 27. Nc3 {[%emt 0:00:01]} Kd6 {[%emt 0:00:25]} 28. Ne4+ {[%emt 0:04:12]} 1/2-1/2